fUSD/lending_fUSD_20250503
["ID","MTS","AMOUNT","RATE_DAILY","PERIOD"]
[359764658,1746310243059,-500.0,0.00019973,2]
[359764659,1746310243069,-500.0,0.00019973,2]
[359764661,1746310243078,-500.0,0.00019973,2]
[359764663,1746310243088,-500.0,0.00019973,2]
[359764665,1746310243097,-163.65177297,0.00019973,2]
[359764667,1746310243107,-500.0,0.00019973,2]
[359764669,1746310243116,-330.0,0.00019973,2]
[359764671,1746310243125,-500.0,0.00019973,2]
[359764673,1746310243135,-177.75275273,0.00019973,2]
[359764675,1746310243144,-502.98408913,0.00019973,2]
[359764677,1746310243156,-500.0,0.00019973,2]
[359764679,1746310243165,-500.0,0.00019973,2]
[359764681,1746310243175,-387.7961174,0.00019973,2]
[359764683,1746310243185,-500.0,0.00019973,2]
[359764685,1746310243195,-500.0,0.00019973,2]
[359764687,1746310243205,-500.0,0.00019973,2]
[359764689,1746310243215,-500.0,0.00019973,2]
[359764691,1746310243224,-500.0,0.00019973,2]
[359764693,1746310243233,-6238.2118993,0.00019986,2]
[359764695,1746310243244,-35091.6998269,0.00019986,2]
[359764697,1746310243254,-16256.5949004,0.00019986,2]
[359764699,1746310243263,-424015.1433927,0.00019986,2]
[359764701,1746310243273,-1187.31423967,0.0001999,2]
[359764703,1746310243282,-1187.31423967,0.0001999,2]
[359764705,1746310243292,-1187.31423967,0.0001999,2]
[359764707,1746310243301,-436.16314679,0.00019998,2]
[359764709,1746310243311,-281.24154047,0.00019999,2]
[359764711,1746310243320,-194.43883954,0.00019999,2]
[359764713,1746310243329,-270.04268955,0.00019999,2]
[359764715,1746310243338,-500.0,0.00019999,2]
[359764717,1746310243347,-221.8421518,0.00019999,2]
[359764719,1746310243357,-500.0,0.00019999,2]
[359764721,1746310243366,-500.0,0.00019999,2]
[359764723,1746310243375,-500.0,0.00019999,2]
[359764725,1746310243385,-400.0,0.00019999,2]
[359764727,1746310243394,-500.0,0.00019999,2]
[359764729,1746310243404,-500.0,0.00019999,2]
[359764731,1746310243413,-309.18010613,0.00019999,2]
[359764733,1746310243424,-500.0,0.00019999,2]
[359764735,1746310243434,-500.0,0.00019999,2]
[359764737,1746310243443,-500.0,0.00019999,2]
[359764740,1746310243453,-518.68152451,0.00019999,2]
[359764742,1746310243463,-500.0,0.00019999,2]
[359764744,1746310243472,-262.43391531,0.00019999,2]
[359764746,1746310243482,-500.0,0.00019999,2]
[359764749,1746310243491,-150.0,0.00019999,2]
[359764751,1746310243502,-150.0,0.00019999,2]
[359764753,1746310243511,-150.0,0.00019999,2]
[359764755,1746310243520,-150.0,0.00019999,2]
[359764757,1746310243530,-150.0,0.00019999,2]
[359764759,1746310243539,-165.0,0.00019999,2]
[359764761,1746310243549,-500.0,0.00019999,2]
[359764763,1746310243558,-274.1117082,0.00019999,2]
[359764765,1746310243568,-500.0,0.00019999,2]
[359764767,1746310243577,-670.50530287,0.00019999,2]
[359764769,1746310243586,-500.0,0.00019999,2]
[359764771,1746310243596,-500.0,0.00019999,2]
[359764773,1746310243605,-300.0,0.00019999,2]
[359764775,1746310243615,-500.0,0.00019999,2]
[359764777,1746310243624,-666.0,0.00019999,2]
[359764779,1746310243634,-300.0,0.00019999,2]
[359764781,1746310243643,-1000.0,0.00019999,2]
[359764783,1746310243652,-1000.0,0.00019999,2]
[359764802,1746310243925,-1000.0,0.00019999,2]
[359764805,1746310243935,-1000.0,0.00019999,2]
[359764807,1746310243944,-1000.0,0.00019999,2]
[359764809,1746310243954,-1000.0,0.00019999,2]
[359764810,1746310243963,-1000.0,0.00019999,2]
[359764812,1746310243973,-1000.0,0.00019999,2]
[359764815,1746310243982,-1000.0,0.00019999,2]
[359764817,1746310243992,-539.61120459,0.00019999,2]
[359764819,1746310244001,-481.69,0.00019999,2]
[359764821,1746310244011,-1199.0,0.00019999,2]
[359764823,1746310244020,-1494.14095793,0.00019999,2]
[359764825,1746310244029,-2609537.54669397,0.0002,2]
[359764827,1746310244039,-965930.64963479,0.0002,2]
[359764830,1746310244063,-3071.32839809,0.0002,2]
[359764832,1746310244075,-1006.31907256,0.0002,2]
[359764836,1746310244098,-5782.15353277,0.0002,2]
[359764838,1746310244114,-1156.2,0.0002,2]
[359764841,1746310244131,-9200.0,0.0002,2]
[359764843,1746310244143,-15000.0,0.0002,2]
[359764860,1746310244298,-1566.97508,0.000199,2]
[359764862,1746310244307,-380118.52111729,0.0002,2]
[359764865,1746310244318,-211.0,0.0002,2]
[359764867,1746310244328,-211.0,0.0002,2]
[359764869,1746310244337,-211.0,0.0002,2]
[359764871,1746310244347,-211.0,0.0002,2]
[359764873,1746310244356,-211.0,0.0002,2]
[359764875,1746310244367,-150.0,0.0002,2]
[359764877,1746310244377,-150.0,0.0002,2]
[359764879,1746310244387,-150.0,0.0002,2]
[359764881,1746310244397,-150.0,0.0002,2]
[359764883,1746310244407,-150.0,0.0002,2]
[359764885,1746310244416,-625.8878442,0.0002,2]
[359764887,1746310244426,-570.54266518,0.0002,2]
[359764889,1746310244436,-556.84562776,0.0002,2]
[359764891,1746310244445,-546.06995888,0.0002,2]
[359764893,1746310244456,-3471.11014134,0.0002,2]
[359764895,1746310244466,-214.0,0.0002,2]
[359764897,1746310244475,-214.0,0.0002,2]
[359764899,1746310244485,-214.0,0.0002,2]
[359764901,1746310244495,-214.0,0.0002,2]
[359764903,1746310244504,-214.0,0.0002,2]
[359764905,1746310244514,-214.0,0.0002,2]
[359764907,1746310244524,-214.0,0.0002,2]
[359764909,1746310244534,-214.0,0.0002,2]
[359764911,1746310244543,-214.0,0.0002,2]
[359764913,1746310244553,-214.0,0.0002,2]
[359764915,1746310244563,-155.0,0.0002,2]
[359764917,1746310244572,-781742.89532497,0.0002,2]
[359764919,1746310244585,-1253.84183608,0.0002,2]
[359764922,1746310244605,-475.47215707,0.0002,2]
[359764925,1746310244619,-873.04153788,0.0002,2]
[359764927,1746310244631,-1015.7,0.0002,2]
[359764929,1746310244642,-50956.53433579,0.0002,2]
[359764931,1746310244653,-1735.74671953,0.0002,2]
[359764934,1746310244670,-2004.69697155,0.0002,2]
[359764981,1746310245771,-175.80092294,0.00019814,2]
[359764982,1746310245781,-3735.6608187,0.00019856,2]
[359764983,1746310245793,-334.6491813,0.00019856,2]
[359764984,1746310245803,-450.0,0.00019856,2]
[359764985,1746310245815,-801.78,0.000199,2]
[359764986,1746310245826,-6663.4708187,0.0002,2]
[359764987,1746310245837,-588.748,0.0002,2]
[359764988,1746310245854,-4483.602,0.0002,2]
[359764989,1746310245866,-782.28583091,0.0002,2]
[359764990,1746310245940,-565.63835302,0.0002,2]
[359764991,1746310245953,-1890.1,0.0002,2]
[359764992,1746310245999,-657.27927126,0.0002,2]
[359764993,1746310246012,-630.820596,0.0002,2]
[359764994,1746310246026,-371804.96338342,0.0002,2]
[359764995,1746310246039,-34163.999997,0.0002,2]
[359764996,1746310246057,-5822.97521153,0.0002,2]
[359764997,1746310246069,-1273.0,0.0002,2]
[359764998,1746310246081,-29428.86218682,0.0002,2]
[359764999,1746310246130,-72.97953586,0.0002,2]
[359765000,1746310246140,-19510.76583152,0.0002,2]
[359765003,1746310263548,391.98,0.00019101,2]
[359765004,1746310269564,153.23,0.00027425,30]
[359765005,1746310281647,1000.0,0.0001908,2]
[359765006,1746310334371,55.07334885,0.00019011,2]
[359765007,1746310334393,552.53665115,0.00019011,2]
[359765008,1746310366252,487.54,0.00019001,2]
[359765009,1746310393809,8959.92334885,0.00018979,2]
[359765010,1746310393832,10000.0,0.00018979,2]
[359765011,1746310393854,4940.07665115,0.00018979,2]
[359765014,1746310440319,500.0,0.00018909,2]
[359765016,1746310477165,538.68,0.00016951,2]
[359765017,1746310477376,538.68,0.00019215,2]
[359765018,1746310483846,166.68,0.00019435,2]
[359765019,1746310574637,3315.88334885,0.00018867,2]
[359765020,1746310574659,684.11665115,0.00018867,2]
[359765021,1746310709544,156.42,0.00016712,2]
[359765022,1746310792661,250.0,0.00017,2]
[359765023,1746310793739,300.0,0.00019,2]
[359765024,1746310884271,1480.71,0.00018804,2]
[359765025,1746311030700,7128.75334885,0.00018759,2]
[359765026,1746311030721,6383.18665115,0.00018759,2]
[359765027,1746311061942,2070.84,0.00018751,2]
[359765028,1746311100819,1545.97334885,0.00018751,2]
[359765029,1746311100840,306.44665115,0.00018751,2]
[359765031,1746311152136,250.0,0.00018766,7]
[359765032,1746311170032,300.0,0.00027397,30]
[359765033,1746311194907,19205.55072052,0.0002597,30]
[359765042,1746311246969,250.0,0.00018748,2]
[359765044,1746311375730,153.23,0.00027425,30]
[359765059,1746311431964,-300.0,0.00019654,2]
[359765060,1746311431973,-300.0,0.00019654,2]
[359765061,1746311431982,-1200.0,0.00019654,2]
[359765062,1746311431992,-300.0,0.00019654,2]
[359765063,1746311432003,-200.0,0.00019654,2]
[359765064,1746311432014,-200.0,0.00019655,2]
[359765065,1746311432023,-250.0,0.00019655,2]
[359765066,1746311432033,-529.0609924,0.00019655,2]
[359765067,1746311432044,-1099.70427217,0.00019655,2]
[359765068,1746311432054,-160.52141677,0.00019655,2]
[359765069,1746311432063,-1215.57136534,0.00019655,2]
[359765070,1746311432073,-1099.70427217,0.00019682,2]
[359765071,1746311432082,-160.52141674,0.00019682,2]
[359765072,1746311432092,-1347.0,0.000197,2]
[359765073,1746311432101,-529.06099239,0.00019701,2]
[359765074,1746311432110,-1049.58637657,0.00019703,2]
[359765075,1746311432120,-207.4,0.00019703,2]
[359765076,1746311432130,-150.99,0.00019709,2]
[359765077,1746311432140,-1099.70427217,0.00019709,2]
[359765078,1746311432149,-160.52141674,0.00019709,2]
[359765079,1746311432158,-850.0,0.00019711,2]
[359765080,1746311432167,-500.0,0.00019712,2]
[359765081,1746311432177,-500.0,0.00019712,2]
[359765082,1746311432186,-500.0,0.00019712,2]
[359765083,1746311432196,-500.0,0.00019712,2]
[359765084,1746311432205,-500.0,0.00019712,2]
[359765085,1746311432214,-500.0,0.00019712,2]
[359765086,1746311432225,-500.0,0.00019712,2]
[359765087,1746311432235,-500.0,0.00019712,2]
[359765088,1746311432244,-500.0,0.00019712,2]
[359765089,1746311432253,-500.0,0.00019712,2]
[359765090,1746311432262,-500.0,0.00019712,2]
[359765091,1746311432274,-500.0,0.00019712,2]
[359765092,1746311432283,-500.0,0.00019712,2]
[359765094,1746311432292,-500.0,0.00019712,2]
[359765096,1746311432301,-500.0,0.00019712,2]
[359765098,1746311432312,-500.0,0.00019712,2]
[359765100,1746311432321,-500.0,0.00019712,2]
[359765102,1746311432330,-500.0,0.00019712,2]
[359765104,1746311432338,-500.0,0.00019712,2]
[359765105,1746311432350,-500.0,0.00019712,2]
[359765107,1746311432359,-500.0,0.00019712,2]
[359765108,1746311432369,-500.0,0.00019712,2]
[359765109,1746311432380,-500.0,0.00019712,2]
[359765110,1746311432389,-315.8487742,0.00019712,2]
[359765111,1746311432398,-500.0,0.00019712,2]
[359765112,1746311432407,-500.0,0.00019712,2]
[359765113,1746311432416,-500.0,0.00019712,2]
[359765114,1746311432425,-500.0,0.00019712,2]
[359765115,1746311432435,-500.0,0.00019712,2]
[359765116,1746311432445,-500.0,0.00019712,2]
[359765117,1746311432455,-500.0,0.00019712,2]
[359765118,1746311432463,-500.0,0.00019712,2]
[359765119,1746311432473,-500.0,0.00019712,2]
[359765120,1746311432482,-500.0,0.00019712,2]
[359765121,1746311432492,-500.0,0.00019712,2]
[359765122,1746311432501,-500.0,0.00019712,2]
[359765123,1746311432510,-500.0,0.00019712,2]
[359765124,1746311432519,-500.0,0.00019712,2]
[359765125,1746311432528,-500.0,0.00019712,2]
[359765126,1746311432537,-581.58487742,0.00019712,2]
[359765127,1746311432547,-500.0,0.00019712,2]
[359765128,1746311432556,-500.0,0.00019712,2]
[359765129,1746311432566,-500.0,0.00019712,2]
[359765130,1746311432575,-500.0,0.00019712,2]
[359765131,1746311432585,-9999.99,0.00019713,2]
[359765132,1746311432594,-34216.1769575,0.00019713,2]
[359765133,1746311432611,-640.20475102,0.00019713,2]
[359765134,1746311432623,-29160.67829148,0.00019713,2]
[359765135,1746311432633,-6864.3715,0.00019715,2]
[359765136,1746311432642,-2532.0675,0.00019715,2]
[359765137,1746311432652,-1099.70427217,0.00019737,2]
[359765138,1746311432661,-160.52141674,0.00019737,2]
[359765139,1746311432671,-151.0,0.00019743,2]
[359765140,1746311432680,-668.65185757,0.00019743,2]
[359765141,1746311432690,-151.0,0.00019743,2]
[359765142,1746311432700,-684.17,0.00019744,2]
[359765143,1746311432709,-684.17,0.00019744,2]
[359765144,1746311432719,-684.17,0.00019744,2]
[359765145,1746311432728,-684.17,0.00019745,2]
[359765146,1746311432738,-684.17,0.00019745,2]
[359765147,1746311432747,-684.17,0.00019745,2]
[359765148,1746311432756,-684.17,0.00019745,2]
[359765149,1746311432767,-684.17,0.00019745,2]
[359765150,1746311432776,-684.17,0.00019745,2]
[359765151,1746311432785,-684.17,0.00019745,2]
[359765152,1746311432796,-1682.9706648,0.00019745,2]
[359765153,1746311432805,-529.06099239,0.00019746,2]
[359765154,1746311432815,-793.68,0.00019754,2]
[359765155,1746311432825,-450.0,0.00019754,2]
[359765156,1746311432972,-450.0,0.00019754,2]
[359765157,1746311432982,-450.0,0.00019754,2]
[359765158,1746311432992,-471.82,0.00019754,2]
[359765159,1746311433002,-450.0,0.00019754,2]
[359765160,1746311433012,-450.0,0.00019754,2]
[359765161,1746311433021,-450.0,0.00019754,2]
[359765162,1746311433031,-450.0,0.00019754,2]
[359765163,1746311433041,-886.95,0.00019754,2]
[359765164,1746311433051,-499.57,0.00019754,2]
[359765165,1746311433061,-450.0,0.00019754,2]
[359765166,1746311433071,-466.69,0.00019754,2]
[359765167,1746311433082,-841.12,0.00019754,2]
[359765168,1746311433092,-450.0,0.00019754,2]
[359765169,1746311433101,-450.0,0.00019754,2]
[359765170,1746311433111,-450.0,0.00019754,2]
[359765171,1746311433121,-1104.84,0.00019754,2]
[359765172,1746311433130,-450.0,0.00019754,2]
[359765173,1746311433140,-450.0,0.00019754,2]
[359765174,1746311433150,-70731.94,0.00019754,2]
[359765175,1746311433159,-450.0,0.00019754,2]
[359765176,1746311433169,-450.0,0.00019754,2]
[359765177,1746311433178,-450.0,0.00019754,2]
[359765178,1746311433188,-450.0,0.00019754,2]
[359765179,1746311433199,-450.0,0.00019754,2]
[359765180,1746311433208,-4571.07,0.00019754,2]
[359765181,1746311433218,-627.68,0.00019754,2]
[359765182,1746311433228,-450.0,0.00019754,2]
[359765183,1746311433238,-662.14,0.00019754,2]
[359765184,1746311433248,-450.0,0.00019754,2]
[359765185,1746311433271,-481.59,0.00019754,2]
[359765186,1746311433282,-1482.21,0.00019754,2]
[359765187,1746311433292,-450.0,0.00019754,2]
[359765188,1746311433301,-450.0,0.00019754,2]
[359765189,1746311433311,-2958.83,0.00019754,2]
[359765190,1746311433321,-450.0,0.00019754,2]
[359765191,1746311433330,-450.0,0.00019754,2]
[359765192,1746311433340,-3055.76,0.00019754,2]
[359765193,1746311433351,-450.0,0.00019754,2]
[359765194,1746311433361,-539.47,0.00019754,2]
[359765195,1746311433372,-1410.54,0.00019754,2]
[359765196,1746311433381,-450.0,0.00019754,2]
[359765197,1746311433391,-481.54,0.00019754,2]
[359765198,1746311433400,-3301.69,0.00019754,2]
[359765199,1746311433409,-450.0,0.00019754,2]
[359765200,1746311433419,-673.46,0.00019754,2]
[359765201,1746311433429,-750.02,0.00019754,2]
[359765202,1746311433439,-450.0,0.00019754,2]
[359765203,1746311433449,-738.5,0.00019754,2]
[359765204,1746311433459,-450.0,0.00019754,2]
[359765205,1746311433468,-1714.42,0.00019754,2]
[359765206,1746311433478,-3900.71,0.00019754,2]
[359765207,1746311433488,-450.0,0.00019754,2]
[359765208,1746311433499,-450.0,0.00019754,2]
[359765209,1746311433508,-181.57583241,0.00019754,2]
[359765210,1746311433517,-379.55513596,0.00019754,2]
[359765211,1746311433527,-258.7436912,0.00019754,2]
[359765212,1746311433537,-443.32250344,0.00019754,2]
[359765213,1746311433546,-434.17225349,0.00019754,2]
[359765214,1746311433555,-257.16611636,0.00019754,2]
[359765215,1746311433565,-500.0,0.00019754,2]
[359765216,1746311433574,-500.0,0.00019754,2]
[359765217,1746311433584,-500.0,0.00019754,2]
[359765218,1746311433593,-299.40610064,0.00019754,2]
[359765219,1746311433603,-500.0,0.00019754,2]
[359765220,1746311433612,-500.0,0.00019754,2]
[359765221,1746311433622,-500.0,0.00019754,2]
[359765222,1746311433632,-500.0,0.00019754,2]
[359765223,1746311433641,-500.0,0.00019754,2]
[359765224,1746311433651,-500.0,0.00019754,2]
[359765225,1746311433661,-500.0,0.00019754,2]
[359765226,1746311433671,-500.0,0.00019754,2]
[359765227,1746311433680,-434.17225348,0.00019754,2]
[359765228,1746311433689,-258.74369119,0.00019754,2]
[359765229,1746311433699,-500.0,0.00019754,2]
[359765230,1746311433708,-500.0,0.00019754,2]
[359765231,1746311433718,-500.0,0.00019754,2]
[359765232,1746311433727,-500.0,0.00019754,2]
[359765233,1746311433736,-500.0,0.00019754,2]
[359765234,1746311433745,-500.0,0.00019754,2]
[359765235,1746311433754,-500.0,0.00019754,2]
[359765236,1746311433764,-500.0,0.00019754,2]
[359765237,1746311433773,-500.0,0.00019754,2]
[359765238,1746311433783,-500.0,0.00019754,2]
[359765239,1746311433792,-500.0,0.00019754,2]
[359765240,1746311433801,-500.0,0.00019754,2]
[359765241,1746311433810,-500.0,0.00019754,2]
[359765242,1746311433820,-184.4814,0.00019755,2]
[359765243,1746311433829,-1518.4031,0.00019755,2]
[359765244,1746311433838,-664.5333,0.00019755,2]
[359765245,1746311433848,-24476.581,0.00019755,2]
[359765246,1746311433857,-1034621.2381,0.00019755,2]
[359765247,1746311433866,-5301.0195,0.00019755,2]
[359765248,1746311433876,-153.6447,0.00019756,2]
[359765249,1746311433885,-10952.806,0.00019756,2]
[359765250,1746311433895,-1293.6604,0.00019756,2]
[359765251,1746311433904,-1488.1735,0.00019756,2]
[359765252,1746311433914,-938.0889,0.00019756,2]
[359765253,1746311433923,-1099.70427217,0.00019764,2]
[359765254,1746311433932,-160.52141674,0.00019764,2]
[359765255,1746311433942,-500.0,0.00019773,2]
[359765256,1746311433952,-500.0,0.00019773,2]
[359765257,1746311433961,-500.0,0.00019773,2]
[359765258,1746311433971,-500.0,0.00019773,2]
[359765259,1746311433980,-161.1858119,0.00019773,2]
[359765260,1746311433990,-505.80008738,0.00019773,2]
[359765261,1746311433999,-500.0,0.00019773,2]
[359765262,1746311434008,-500.0,0.00019773,2]
[359765263,1746311434018,-495.25608949,0.00019773,2]
[359765264,1746311434027,-500.0,0.00019773,2]
[359765265,1746311434036,-165.0797042,0.00019773,2]
[359765266,1746311434046,-500.0,0.00019773,2]
[359765267,1746311434055,-500.0,0.00019773,2]
[359765268,1746311434064,-506.72470226,0.00019773,2]
[359765269,1746311434074,-163.65177297,0.00019773,2]
[359765270,1746311434084,-156.32997402,0.00019773,2]
[359765271,1746311434094,-500.0,0.00019773,2]
[359765272,1746311434104,-154.61178396,0.00019773,2]
[359765273,1746311434114,-553.0106179,0.00019773,2]
[359765274,1746311434124,-155.35349074,0.00019773,2]
[359765275,1746311434133,-157.30507306,0.00019773,2]
[359765276,1746311434143,-207.79775041,0.00019773,2]
[359765277,1746311434153,-500.0,0.00019773,2]
[359765278,1746311434162,-500.0,0.00019773,2]
[359765279,1746311434171,-1099.70427217,0.00019791,2]
[359765280,1746311434181,-160.52141674,0.00019791,2]
[359765281,1746311434190,-529.06099239,0.00019792,2]
[359765282,1746311434200,-377.34043247,0.00019799,2]
[359765283,1746311434210,-1116.3620788,0.00019799,2]
[359765284,1746311434219,-1099.70427217,0.00019818,2]
[359765285,1746311434230,-160.52141674,0.00019818,2]
[359765286,1746311434240,-529.06099239,0.00019837,2]
[359765287,1746311434250,-200.0,0.0001984,2]
[359765288,1746311434260,-1099.70427217,0.00019846,2]
[359765289,1746311434271,-160.52141674,0.00019846,2]
[359765290,1746311434284,-521.31,0.00019854,2]
[359765291,1746311434294,-450.0,0.00019854,2]
[359765292,1746311434304,-343.13459588,0.00019854,2]
[359765293,1746311434314,-450.0,0.00019854,2]
[359765294,1746311434324,-182.65158867,0.00019854,2]
[359765295,1746311434332,-450.0,0.00019854,2]
[359765296,1746311434342,-450.0,0.00019854,2]
[359765297,1746311434352,-784.16,0.00019854,2]
[359765298,1746311434361,-528.13725118,0.00019854,2]
[359765299,1746311434371,-608.32,0.00019854,2]
[359765300,1746311434380,-450.0,0.00019854,2]
[359765301,1746311434390,-450.0,0.00019854,2]
[359765302,1746311434400,-450.0,0.00019854,2]
[359765303,1746311434409,-450.0,0.00019854,2]
[359765304,1746311434419,-392.34791614,0.00019854,2]
[359765305,1746311434429,-464.71,0.00019854,2]
[359765306,1746311434439,-450.0,0.00019854,2]
[359765307,1746311434449,-450.0,0.00019854,2]
[359765308,1746311434459,-450.0,0.00019854,2]
[359765309,1746311434468,-450.0,0.00019854,2]
[359765310,1746311434478,-450.0,0.00019854,2]
[359765311,1746311434487,-450.0,0.00019854,2]
[359765312,1746311434497,-450.0,0.00019854,2]
[359765313,1746311434507,-450.0,0.00019854,2]
[359765314,1746311434517,-464.99,0.00019854,2]
[359765315,1746311434527,-450.0,0.00019854,2]
[359765316,1746311434536,-453.86,0.00019854,2]
[359765317,1746311434546,-450.0,0.00019854,2]
[359765318,1746311434555,-450.0,0.00019854,2]
[359765319,1746311434565,-450.0,0.00019854,2]
[359765320,1746311434575,-450.0,0.00019854,2]
[359765321,1746311434586,-450.0,0.00019854,2]
[359765322,1746311434595,-450.0,0.00019854,2]
[359765323,1746311434604,-1092.4,0.00019854,2]
[359765324,1746311434614,-450.0,0.00019854,2]
[359765325,1746311434624,-450.0,0.00019854,2]
[359765326,1746311434634,-450.0,0.00019854,2]
[359765327,1746311434644,-450.0,0.00019854,2]
[359765328,1746311434654,-1295.3,0.00019854,2]
[359765329,1746311434664,-450.0,0.00019854,2]
[359765330,1746311434674,-5156.1,0.00019854,2]
[359765331,1746311434684,-505.73,0.00019854,2]
[359765332,1746311434694,-3566.67,0.00019854,2]
[359765333,1746311434704,-485.9,0.00019854,2]
[359765334,1746311434714,-514.92,0.00019854,2]
[359765335,1746311434725,-450.0,0.00019854,2]
[359765336,1746311434735,-495.71,0.00019854,2]
[359765337,1746311434744,-2010.39,0.00019854,2]
[359765338,1746311434754,-3575.0,0.00019854,2]
[359765339,1746311434763,-450.0,0.00019854,2]
[359765340,1746311434773,-73924.15,0.00019854,2]
[359765341,1746311434783,-510.52,0.00019854,2]
[359765342,1746311434793,-450.0,0.00019854,2]
[359765343,1746311434802,-646.84,0.00019854,2]
[359765344,1746311434812,-1268.87,0.00019854,2]
[359765345,1746311434822,-450.0,0.00019854,2]
[359765346,1746311434831,-450.0,0.00019854,2]
[359765347,1746311434841,-3192.2,0.00019854,2]
[359765348,1746311434851,-15723.78,0.00019854,2]
[359765349,1746311434861,-450.0,0.00019854,2]
[359765350,1746311434871,-450.0,0.00019854,2]
[359765351,1746311434882,-521.59,0.00019854,2]
[359765352,1746311434891,-9836.87,0.00019854,2]
[359765353,1746311434901,-450.0,0.00019854,2]
[359765354,1746311434910,-1334.48,0.00019854,2]
[359765355,1746311434920,-450.0,0.00019854,2]
[359765356,1746311434930,-450.0,0.00019854,2]
[359765357,1746311434940,-450.0,0.00019854,2]
[359765358,1746311434950,-450.0,0.00019854,2]
[359765359,1746311434960,-450.0,0.00019854,2]
[359765360,1746311434970,-697.22,0.00019854,2]
[359765361,1746311434978,-450.0,0.00019854,2]
[359765362,1746311434987,-560.34,0.00019854,2]
[359765363,1746311434997,-450.0,0.00019854,2]
[359765364,1746311435007,-450.0,0.00019854,2]
[359765365,1746311435018,-450.0,0.00019854,2]
[359765366,1746311435027,-450.0,0.00019854,2]
[359765367,1746311435036,-450.0,0.00019854,2]
[359765368,1746311435046,-450.0,0.00019854,2]
[359765369,1746311435056,-1023.32,0.00019854,2]
[359765370,1746311435066,-450.0,0.00019854,2]
[359765371,1746311435075,-160.59965828,0.00019854,2]
[359765372,1746311435085,-490.13,0.00019854,2]
[359765373,1746311435095,-450.0,0.00019854,2]
[359765374,1746311435104,-697.13,0.00019854,2]
[359765375,1746311435114,-450.0,0.00019854,2]
[359765376,1746311435124,-450.0,0.00019854,2]
[359765377,1746311435133,-450.0,0.00019854,2]
[359765378,1746311435143,-450.0,0.00019854,2]
[359765379,1746311435153,-450.0,0.00019854,2]
[359765380,1746311435163,-489.35,0.00019854,2]
[359765381,1746311435173,-450.0,0.00019854,2]
[359765382,1746311435182,-1293.88,0.00019854,2]
[359765383,1746311435192,-450.0,0.00019854,2]
[359765384,1746311435201,-464.14,0.00019854,2]
[359765385,1746311435211,-450.0,0.00019854,2]
[359765386,1746311435221,-450.0,0.00019855,2]
[359765387,1746311435230,-450.0,0.00019855,2]
[359765388,1746311435240,-500.0,0.00019855,2]
[359765389,1746311435249,-450.0,0.00019855,2]
[359765390,1746311435259,-500.0,0.00019855,2]
[359765391,1746311435269,-450.0,0.00019855,2]
[359765392,1746311435282,-450.0,0.00019855,2]
[359765393,1746311435292,-450.0,0.00019855,2]
[359765394,1746311435301,-450.0,0.00019855,2]
[359765395,1746311435311,-450.0,0.00019855,2]
[359765396,1746311435322,-450.0,0.00019855,2]
[359765397,1746311435331,-450.0,0.00019855,2]
[359765398,1746311435341,-450.0,0.00019855,2]